[Event "*** Titled Tuesday Blitz"]
[Site "Chess.com"]
[Date "2018.11.06"]
[Round "4"]
[White "mishanick"]
[Black "VladimirBelous"]
[Result "1/2-1/2"]
[WhiteElo "2924"]
[BlackElo "2744"]
[TimeControl "180+2"]
[EndTime "13:55:32 PST"]
[Termination "Game drawn by repetition"]

1. d4 {[%clk 0:03:01.9]} 1... c5 {[%clk 0:02:57.4]} 2. d5 {[%clk 0:03:02.7]}
2... g6 {[%clk 0:02:58.9]} 3. c4 {[%clk 0:03:03.2]} 3... Bg7 {[%clk 0:03:00.1]}
4. Nf3 {[%clk 0:03:01.6]} 4... d6 {[%clk 0:03:01.3]} 5. Nc3 {[%clk 0:03:02.5]}
5... e6 {[%clk 0:03:01.5]} 6. e4 {[%clk 0:03:02]} 6... Ne7 {[%clk 0:03:01.1]} 7.
Bd3 {[%clk 0:03:00.3]} 7... exd5 {[%clk 0:03:00.8]} 8. cxd5 {[%clk 0:02:59.5]}
8... a6 {[%clk 0:03:01.9]} 9. a4 {[%clk 0:03:00.2]} 9... Bg4 {[%clk 0:03:02.4]}
10. O-O {[%clk 0:03:00.2]} 10... Nd7 {[%clk 0:03:02.7]} 11. Be2 {[%clk
0:03:01.5]} 11... O-O {[%clk 0:03:02.3]} 12. Bf4 {[%clk 0:02:59.4]} 12... Bxf3
{[%clk 0:02:59.9]} 13. Bxf3 {[%clk 0:02:59.3]} 13... Ne5 {[%clk 0:03:01.4]} 14.
Be2 {[%clk 0:03:00.5]} 14... f5 {[%clk 0:03:02.3]} 15. Qd2 {[%clk 0:02:54.5]}
15... fxe4 {[%clk 0:02:52.1]} 16. Nxe4 {[%clk 0:02:54]} 16... Nf5 {[%clk
0:02:53.4]} 17. Ng5 {[%clk 0:02:43.5]} 17... Nd4 {[%clk 0:01:47.4]} 18. Ne6
{[%clk 0:02:35.9]} 18... Nxe6 {[%clk 0:01:44.1]} 19. dxe6 {[%clk 0:02:37.8]}
19... Qe7 {[%clk 0:01:45.4]} 20. Bxe5 {[%clk 0:02:29.5]} 20... Bxe5 {[%clk
0:01:47.3]} 21. Bc4 {[%clk 0:02:30.5]} 21... Kg7 {[%clk 0:01:38.7]} 22. g3
{[%clk 0:02:19]} 22... Bd4 {[%clk 0:01:34.5]} 23. Kg2 {[%clk 0:02:09.7]} 23...
Rad8 {[%clk 0:01:31.4]} 24. Rae1 {[%clk 0:02:02.3]} 24... d5 {[%clk 0:01:31.3]}
25. Ba2 {[%clk 0:02:02]} 25... Rf6 {[%clk 0:01:31.7]} 26. b4 {[%clk 0:01:18.8]}
26... Rxe6 {[%clk 0:01:31.7]} 27. bxc5 {[%clk 0:01:18.8]} 27... Rxe1 {[%clk
0:01:15.4]} 28. Rxe1 {[%clk 0:01:07.5]} 28... Qxc5 {[%clk 0:01:16.2]} 29. Rc1
{[%clk 0:00:53.9]} 29... Qb6 {[%clk 0:01:10.5]} 30. Rb1 {[%clk 0:00:54.2]} 30...
Qa7 {[%clk 0:01:06.8]} 31. Qb4 {[%clk 0:00:10.1]} 31... Rd7 {[%clk 0:00:55.8]}
32. Rd1 {[%clk 0:00:07]} 32... Bc5 {[%clk 0:00:42.1]} 33. Qb3 {[%clk 0:00:08.3]}
33... b5 {[%clk 0:00:18]} 34. axb5 {[%clk 0:00:10.2]} 34... axb5 {[%clk
0:00:18.7]} 35. Rxd5 {[%clk 0:00:11.7]} 35... Rxd5 {[%clk 0:00:11]} 36. Qxd5
{[%clk 0:00:13.6]} 36... Qe7 {[%clk 0:00:11.6]} 37. Qd3 {[%clk 0:00:11.3]} 37...
b4 {[%clk 0:00:12.2]} 38. Bd5 {[%clk 0:00:11.8]} 38... Qe5 {[%clk 0:00:12.5]}
39. f4 {[%clk 0:00:12.7]} 39... Qb2+ {[%clk 0:00:12.9]} 40. Kh3 {[%clk
0:00:13.1]} 40... Qc3 {[%clk 0:00:10.7]} 41. Qe4 {[%clk 0:00:13.6]} 41... b3
{[%clk 0:00:11.1]} 42. Qe8 {[%clk 0:00:09.9]} 42... b2 {[%clk 0:00:07.2]} 43.
Be4 {[%clk 0:00:09.9]} 43... Qf6 {[%clk 0:00:06.8]} 44. Qd7+ {[%clk 0:00:10.6]}
44... Be7 {[%clk 0:00:08.1]} 45. Qb7 {[%clk 0:00:11.2]} 45... Kh6 {[%clk
0:00:08.3]} 46. Kg2 {[%clk 0:00:10.2]} 46... Bd6 {[%clk 0:00:08.3]} 47. h4
{[%clk 0:00:10.3]} 47... Qd4 {[%clk 0:00:08.3]} 48. Kh3 {[%clk 0:00:11.2]} 48...
Qf2 {[%clk 0:00:08.3]} 49. Kg4 {[%clk 0:00:10]} 49... Qe2+ {[%clk 0:00:09.1]}
50. Bf3 {[%clk 0:00:11.2]} 50... Qc2 {[%clk 0:00:10.2]} 51. Be4 {[%clk
0:00:12.1]} 51... Qd1+ {[%clk 0:00:11.2]} 52. Kh3 {[%clk 0:00:13.4]} 52... Qf1+
{[%clk 0:00:12.1]} 53. Kg4 {[%clk 0:00:14.5]} 53... Qe2+ {[%clk 0:00:13.3]} 54.
Kh3 {[%clk 0:00:15.8]} 54... Bc5 {[%clk 0:00:13.9]} 55. Qd5 {[%clk 0:00:14.6]}
55... Qf1+ {[%clk 0:00:13]} 56. Kg4 {[%clk 0:00:13.3]} 56... Qe2+ {[%clk
0:00:10.1]} 57. Kh3 {[%clk 0:00:14.4]} 57... Be7 {[%clk 0:00:11.3]} 58. Qb7
{[%clk 0:00:12.5]} 58... Bf6 {[%clk 0:00:09.8]} 59. Qb4 {[%clk 0:00:09.6]} 59...
Qf1+ {[%clk 0:00:08.8]} 60. Kg4 {[%clk 0:00:10.4]} 60... Qd1+ {[%clk 0:00:09.4]}
61. Kh3 {[%clk 0:00:11.7]} 61... Qe2 {[%clk 0:00:09.7]} 62. Qb7 {[%clk
0:00:13.1]} 62... Bd4 {[%clk 0:00:09.9]} 63. Qe7 {[%clk 0:00:12.6]} 63... Qf1+
{[%clk 0:00:10.7]} 64. Kg4 {[%clk 0:00:13.9]} 64... Qd1+ {[%clk 0:00:12]} 65.
Kh3 {[%clk 0:00:15.2]} 65... Qf1+ {[%clk 0:00:09]} 66. Bg2 {[%clk 0:00:15.4]}
66... b1=Q {[%clk 0:00:07.5]} 67. Qg5+ {[%clk 0:00:15.8]} 67... Kg7 {[%clk
0:00:08]} 68. Qe7+ {[%clk 0:00:17.4]} 68... Kh6 {[%clk 0:00:09.3]} 69. Qg5+
{[%clk 0:00:15.6]} 69... Kg7 {[%clk 0:00:10.3]} 70. Qe7+ {[%clk 0:00:16.6]}
70... Kh6 {[%clk 0:00:11.7]} 71. Qg5+ {[%clk 0:00:10.2]} 71... Kg7 {[%clk
0:00:12.6]} 72. Qe7+ {[%clk 0:00:11.8]} 72... Kh6 {[%clk 0:00:12.9]} 73. Qg5+
{[%clk 0:00:12.3]} 73... Kg7 {[%clk 0:00:14.3]} 74. Qe7+ {[%clk 0:00:11.6]}
74... Kh6 {[%clk 0:00:15.3]} 1/2-1/2

[Event "*** Titled Tuesday Blitz"]
[Site "Chess.com"]
[Date "2018.11.06"]
[Round "4"]
[White "nearestway"]
[Black "enriquetejedor"]
[Result "1-0"]
[WhiteElo "2519"]
[BlackElo "2461"]
[TimeControl "180+2"]
[EndTime "13:56:30 PST"]
[Termination "nearestway won by resignation"]

1. Nf3 {[%clk 0:03:01.9]} 1... c5 {[%clk 0:03:00.1]} 2. c4 {[%clk 0:03:02.9]}
2... Nf6 {[%clk 0:03:01]} 3. Nc3 {[%clk 0:03:03]} 3... d5 {[%clk 0:03:02.3]} 4.
cxd5 {[%clk 0:03:02.7]} 4... Nxd5 {[%clk 0:03:03.3]} 5. g3 {[%clk 0:03:03.5]}
5... Nc6 {[%clk 0:03:03.6]} 6. Bg2 {[%clk 0:03:04.2]} 6... Nc7 {[%clk
0:03:04.7]} 7. O-O {[%clk 0:03:03.6]} 7... e5 {[%clk 0:03:02.9]} 8. a3 {[%clk
0:03:04.8]} 8... f6 {[%clk 0:02:56.4]} 9. d3 {[%clk 0:03:01.3]} 9... Be6 {[%clk
0:02:57.2]} 10. Rb1 {[%clk 0:03:01.3]} 10... Qd7 {[%clk 0:02:51.8]} 11. Bd2
{[%clk 0:02:57.8]} 11... Be7 {[%clk 0:02:52.6]} 12. b4 {[%clk 0:02:51.6]} 12...
cxb4 {[%clk 0:02:52.4]} 13. axb4 {[%clk 0:02:52.7]} 13... Nxb4 {[%clk
0:02:50.1]} 14. Qa4 {[%clk 0:02:48.6]} 14... Qxa4 {[%clk 0:02:44.3]} 15. Nxa4
{[%clk 0:02:49.4]} 15... a5 {[%clk 0:02:41.7]} 16. Rfc1 {[%clk 0:02:46.5]} 16...
Ncd5 {[%clk 0:02:20.7]} 17. d4 {[%clk 0:02:47.4]} 17... e4 {[%clk 0:02:19.9]}
18. Ne1 {[%clk 0:02:44.4]} 18... f5 {[%clk 0:02:12.1]} 19. e3 {[%clk 0:02:42.6]}
19... Kf7 {[%clk 0:02:12.6]} 20. f3 {[%clk 0:02:40.4]} 20... Nf6 {[%clk
0:02:09.4]} 21. Nc3 {[%clk 0:02:39.2]} 21... exf3 {[%clk 0:02:09.1]} 22. Nxf3
{[%clk 0:02:37.9]} 22... Nd7 {[%clk 0:01:54.6]} 23. e4 {[%clk 0:02:38.7]} 23...
fxe4 {[%clk 0:01:50.9]} 24. Nxe4 {[%clk 0:02:40.6]} 24... Bf5 {[%clk 0:01:49.2]}
25. Rf1 {[%clk 0:02:38.1]} 25... Rhf8 {[%clk 0:01:42.4]} 26. Nh4 {[%clk
0:02:35.3]} 26... g6 {[%clk 0:01:29.5]} 27. Nxf5 {[%clk 0:02:30.6]} 27... gxf5
{[%clk 0:01:31.4]} 28. Rxf5+ {[%clk 0:02:28.2]} 28... Kg7 {[%clk 0:01:32.3]} 29.
Rb5 {[%clk 0:02:25.4]} 29... b6 {[%clk 0:01:25.7]} 30. Ng5 {[%clk 0:02:21.8]}
30... Bxg5 {[%clk 0:01:26.7]} 31. Rxg5+ {[%clk 0:02:17.4]} 31... Kf6 {[%clk
0:01:19.6]} 32. Bxa8 {[%clk 0:02:19.3]} 32... Rxa8 {[%clk 0:01:20.6]} 33. Rf1+
{[%clk 0:02:06.5]} 33... Ke6 {[%clk 0:01:21]} 34. Bxb4 {[%clk 0:01:58.3]} 34...
axb4 {[%clk 0:01:22.9]} 35. Rb5 {[%clk 0:01:58.1]} 35... Ra4 {[%clk 0:01:22.5]}
36. Rb1 {[%clk 0:01:57.8]} 36... b3 {[%clk 0:01:22.4]} 37. d5+ {[%clk
0:01:55.8]} 37... Kd6 {[%clk 0:01:23.7]} 38. R5xb3 {[%clk 0:01:54.5]} 38... Kxd5
{[%clk 0:01:17.5]} 39. Rd1+ {[%clk 0:01:54.9]} 39... Kc6 {[%clk 0:01:17.4]} 40.
Rf3 {[%clk 0:01:52.3]} 40... h5 {[%clk 0:01:12.8]} 41. h4 {[%clk 0:01:46.6]}
41... Nc5 {[%clk 0:01:08.7]} 42. Rf6+ {[%clk 0:01:45.8]} 42... Kb7 {[%clk
0:01:00.8]} 43. Rb1 {[%clk 0:01:44]} 43... Nd7 {[%clk 0:00:57.1]} 44. Rh6 {[%clk
0:01:42]} 44... Ra5 {[%clk 0:00:50.7]} 45. Rh7 {[%clk 0:01:35.6]} 45... Kc6
{[%clk 0:00:50.5]} 46. Rc1+ {[%clk 0:01:31.5]} 46... Nc5 {[%clk 0:00:46.5]} 47.
Rxh5 {[%clk 0:01:27.2]} 47... Ra3 {[%clk 0:00:42.2]} 48. Rh6+ {[%clk 0:01:28]}
48... Kd5 {[%clk 0:00:42.6]} 49. Rd1+ {[%clk 0:01:26.8]} 49... Ke4 {[%clk
0:00:40.6]} 50. Kg2 {[%clk 0:01:24.5]} 50... Nd3 {[%clk 0:00:39]} 51. Rxb6
{[%clk 0:01:19.2]} 51... Ra2+ {[%clk 0:00:38.6]} 52. Kg1 {[%clk 0:01:20.3]}
52... Nf2 {[%clk 0:00:36.2]} 53. Re1+ {[%clk 0:01:16.3]} 53... Kf3 {[%clk
0:00:27.8]} 54. Rf6+ {[%clk 0:01:16.3]} 54... Kxg3 {[%clk 0:00:27.4]} 55. Re3+
{[%clk 0:01:16.9]} 55... Kxh4 {[%clk 0:00:22.7]} 56. Rxf2 {[%clk 0:01:17]} 56...
Ra1+ {[%clk 0:00:24.6]} 57. Kg2 {[%clk 0:01:17.7]} 57... Kg4 {[%clk 0:00:13]}
58. Re4+ {[%clk 0:01:16.8]} 58... Kg5 {[%clk 0:00:11.5]} 59. Rb2 {[%clk
0:01:15.8]} 59... Ra5 {[%clk 0:00:11.7]} 60. Reb4 {[%clk 0:01:16.5]} 60... Kf6
{[%clk 0:00:09.3]} 61. Rb5 {[%clk 0:01:15.7]} 61... Ra3 {[%clk 0:00:06.1]} 62.
Rc2 {[%clk 0:01:14.8]} 62... Ra6 {[%clk 0:00:06.3]} 63. Kf3 {[%clk 0:01:14.8]}
63... Ra3+ {[%clk 0:00:07]} 64. Ke4 {[%clk 0:01:09.9]} 64... Ra4+ {[%clk
0:00:08.2]} 65. Kd5 {[%clk 0:01:08.6]} 65... Rf4 {[%clk 0:00:08.4]} 66. Rc6+
{[%clk 0:01:01.1]} 66... Kf5 {[%clk 0:00:06.5]} 67. Rc8 {[%clk 0:01:00.2]} 67...
Ra4 {[%clk 0:00:05.2]} 68. Rf8+ {[%clk 0:01:00.4]} 68... Kg6 {[%clk 0:00:03.5]}
69. Rb1 {[%clk 0:01:00.3]} 69... Ra5+ {[%clk 0:00:04.4]} 70. Kc4 {[%clk
0:00:56.7]} 70... Kg7 {[%clk 0:00:06]} 71. Rf2 {[%clk 0:00:56]} 71... Rg5 {[%clk
0:00:05.7]} 72. Kd4 {[%clk 0:00:52.8]} 72... Rg4+ {[%clk 0:00:05.9]} 73. Ke5
{[%clk 0:00:53.2]} 73... Rg5+ {[%clk 0:00:05.8]} 74. Ke6 {[%clk 0:00:52.3]}
74... Rg6+ {[%clk 0:00:06.1]} 75. Ke7 {[%clk 0:00:53.5]} 75... Rg3 {[%clk
0:00:06.4]} 76. Rb6 {[%clk 0:00:53.6]} 76... Re3+ {[%clk 0:00:06.9]} 77. Re6
{[%clk 0:00:54.6]} 77... Rg3 {[%clk 0:00:04.4]} 78. Rf7+ {[%clk 0:00:54.3]}
78... Kg8 {[%clk 0:00:04.8]} 79. Rff6 {[%clk 0:00:54.1]} 79... Kg7 {[%clk
0:00:03.3]} 80. Ke8 {[%clk 0:00:54.8]} 80... Rg2 {[%clk 0:00:03.3]} 81. Rf7+
{[%clk 0:00:55.2]} 81... Kg8 {[%clk 0:00:04.7]} 82. Rc7 {[%clk 0:00:52.9]} 82...
Rg3 {[%clk 0:00:04.2]} 83. Kd8 {[%clk 0:00:52.5]} 83... Rd3+ {[%clk 0:00:03.2]}
84. Kc8 {[%clk 0:00:52.9]} 84... Kf8 {[%clk 0:00:03.8]} 85. Ra7 {[%clk
0:00:42.4]} 85... Rc3+ {[%clk 0:00:04]} 86. Kb8 {[%clk 0:00:43.3]} 86... Rb3+
{[%clk 0:00:03.6]} 87. Ka8 {[%clk 0:00:44.3]} 87... Rd3 {[%clk 0:00:03.3]} 88.
Rb6 {[%clk 0:00:44.9]} 88... Rd8+ {[%clk 0:00:02.8]} 89. Rb8 {[%clk 0:00:46.8]}
89... Ke8 {[%clk 0:00:03.6]} 1-0

[Event "*** Titled Tuesday Blitz"]
[Site "Chess.com"]
[Date "2018.11.06"]
[Round "4"]
[White "Ramosha"]
[Black "GhostOfGreenval"]
[Result "0-1"]
[WhiteElo "2474"]
[BlackElo "2697"]
[TimeControl "180+2"]
[EndTime "13:56:31 PST"]
[Termination "GhostOfGreenval won by checkmate"]

1. d4 {[%clk 0:02:18.3]} 1... Nf6 {[%clk 0:03:00.7]} 2. c4 {[%clk 0:02:19.1]}
2... g6 {[%clk 0:03:01]} 3. Nc3 {[%clk 0:02:19.7]} 3... Bg7 {[%clk 0:03:01.8]}
4. e4 {[%clk 0:02:20.6]} 4... d6 {[%clk 0:03:00.8]} 5. f3 {[%clk 0:02:21.6]}
5... O-O {[%clk 0:03:00.8]} 6. Be3 {[%clk 0:02:22.4]} 6... c5 {[%clk 0:03:01]}
7. dxc5 {[%clk 0:02:23.9]} 7... dxc5 {[%clk 0:02:58.4]} 8. Qxd8 {[%clk
0:02:25.8]} 8... Rxd8 {[%clk 0:02:59.9]} 9. Bxc5 {[%clk 0:02:26.9]} 9... Nc6
{[%clk 0:03:01]} 10. Be3 {[%clk 0:02:27.8]} 10... Nb4 {[%clk 0:02:51.2]} 11. Rc1
{[%clk 0:02:28.3]} 11... Nd7 {[%clk 0:02:51.8]} 12. b3 {[%clk 0:02:01.4]} 12...
Ne5 {[%clk 0:02:50.2]} 13. Rd1 {[%clk 0:01:25.2]} 13... Nxf3+ {[%clk 0:02:50.3]}
14. Nxf3 {[%clk 0:01:19.8]} 14... Bxc3+ {[%clk 0:02:49.7]} 15. Ke2 {[%clk
0:01:21.1]} 15... Rxd1 {[%clk 0:02:49.8]} 16. Kxd1 {[%clk 0:01:22.5]} 16... Nxa2
{[%clk 0:02:48.4]} 17. Kc2 {[%clk 0:01:20.6]} 17... Bg7 {[%clk 0:02:46.5]} 18.
Bc5 {[%clk 0:01:19]} 18... Bg4 {[%clk 0:02:40.3]} 19. Bd3 {[%clk 0:01:03.1]}
19... a5 {[%clk 0:02:38.2]} 20. Bxe7 {[%clk 0:00:44.3]} 20... Nb4+ {[%clk
0:02:35.1]} 21. Kd2 {[%clk 0:00:38.7]} 21... Re8 {[%clk 0:02:26.6]} 22. Bxb4
{[%clk 0:00:38.4]} 22... axb4 {[%clk 0:02:28.5]} 23. h3 {[%clk 0:00:36.2]} 23...
Bd7 {[%clk 0:02:14.4]} 24. Ne1 {[%clk 0:00:30.2]} 24... Bh6+ {[%clk 0:02:13.5]}
25. Ke2 {[%clk 0:00:23.6]} 25... f5 {[%clk 0:02:12.9]} 26. c5 {[%clk 0:00:16]}
26... fxe4 {[%clk 0:02:13.8]} 27. Bc4+ {[%clk 0:00:17]} 27... Kh8 {[%clk
0:02:13.7]} 28. Nc2 {[%clk 0:00:17.7]} 28... Bf8 {[%clk 0:01:38.8]} 29. Rd1
{[%clk 0:00:18.2]} 29... Bc6 {[%clk 0:01:37.1]} 30. Nxb4 {[%clk 0:00:18.8]}
30... Bxc5 {[%clk 0:01:38.7]} 31. Nxc6 {[%clk 0:00:20]} 31... bxc6 {[%clk
0:01:40.6]} 32. Rd7 {[%clk 0:00:20.4]} 32... Ra8 {[%clk 0:01:34.8]} 33. b4
{[%clk 0:00:15.7]} 33... Bxb4 {[%clk 0:01:33.3]} 34. Ke3 {[%clk 0:00:16.6]}
34... Re8 {[%clk 0:01:30.9]} 35. Rc7 {[%clk 0:00:17.6]} 35... Bc5+ {[%clk
0:01:28.9]} 36. Ke2 {[%clk 0:00:17.7]} 36... Rb8 {[%clk 0:01:29.4]} 37. Rxc6
{[%clk 0:00:14.5]} 37... Rb2+ {[%clk 0:01:30.5]} 38. Kf1 {[%clk 0:00:15.4]}
38... Bd4 {[%clk 0:01:13]} 39. Re6 {[%clk 0:00:15.9]} 39... Rf2+ {[%clk
0:01:10]} 40. Ke1 {[%clk 0:00:17]} 40... e3 {[%clk 0:01:11.9]} 41. g4 {[%clk
0:00:16.2]} 41... Kg7 {[%clk 0:01:07.6]} 42. Re4 {[%clk 0:00:17]} 42... Bc3+
{[%clk 0:01:07.4]} 43. Kd1 {[%clk 0:00:17.9]} 43... Rd2+ {[%clk 0:01:06.3]} 44.
Kc1 {[%clk 0:00:18.3]} 44... Bb2+ {[%clk 0:01:07.4]} 45. Kb1 {[%clk 0:00:19]}
45... Bd4 {[%clk 0:01:09.3]} 46. g5 {[%clk 0:00:18]} 46... h6 {[%clk 0:00:43.4]}
47. h4 {[%clk 0:00:18.6]} 47... hxg5 {[%clk 0:00:39.9]} 48. hxg5 {[%clk
0:00:20.5]} 48... Kf8 {[%clk 0:00:41.4]} 49. Re6 {[%clk 0:00:20.6]} 49... Rg2
{[%clk 0:00:35.5]} 50. Rxg6 {[%clk 0:00:10.1]} 50... e2 {[%clk 0:00:34]} 51.
Bxe2 {[%clk 0:00:11.1]} 51... Rxe2 {[%clk 0:00:35.8]} 52. Rd6 {[%clk 0:00:11.7]}
52... Bc3 {[%clk 0:00:27.9]} 53. Rc6 {[%clk 0:00:12]} 53... Bd2 {[%clk
0:00:26.6]} 54. g6 {[%clk 0:00:11.4]} 54... Re1+ {[%clk 0:00:26.8]} 55. Kb2
{[%clk 0:00:10.9]} 55... Bg5 {[%clk 0:00:25.3]} 56. Ra6 {[%clk 0:00:09.6]} 56...
Kg7 {[%clk 0:00:26.1]} 57. Kc2 {[%clk 0:00:10.7]} 57... Bf6 {[%clk 0:00:26.6]}
58. Kd3 {[%clk 0:00:11.8]} 58... Kxg6 {[%clk 0:00:27.6]} 59. Ra4 {[%clk
0:00:12.2]} 59... Kf5 {[%clk 0:00:27.5]} 60. Rc4 {[%clk 0:00:10.3]} 60... Be5
{[%clk 0:00:25.9]} 61. Rc8 {[%clk 0:00:11.1]} 61... Rd1+ {[%clk 0:00:26.8]} 62.
Ke2 {[%clk 0:00:11.6]} 62... Ra1 {[%clk 0:00:25.7]} 63. Rc2 {[%clk 0:00:12.5]}
63... Ke4 {[%clk 0:00:25.8]} 64. Rc4+ {[%clk 0:00:13.6]} 64... Bd4 {[%clk
0:00:27]} 65. Rc2 {[%clk 0:00:14.2]} 65... Rh1 {[%clk 0:00:26.8]} 66. Kd2 {[%clk
0:00:15.4]} 66... Rh3 {[%clk 0:00:25.3]} 67. Ke2 {[%clk 0:00:16]} 67... Bc3
{[%clk 0:00:25.7]} 68. Kd1 {[%clk 0:00:12.7]} 68... Kd3 {[%clk 0:00:23.2]} 69.
Rd2+ {[%clk 0:00:14]} 69... Kc4 {[%clk 0:00:23]} 70. Rd7 {[%clk 0:00:11.7]}
70... Rh2 {[%clk 0:00:24.1]} 71. Re7 {[%clk 0:00:04.5]} 71... Kd3 {[%clk
0:00:24.6]} 72. Rd7+ {[%clk 0:00:04.2]} 72... Bd4 {[%clk 0:00:26]} 73. Re7
{[%clk 0:00:05.2]} 73... Ra2 {[%clk 0:00:21.7]} 74. Rc7 {[%clk 0:00:05.6]} 74...
Ra5 {[%clk 0:00:15.3]} 75. Rc8 {[%clk 0:00:05.1]} 75... Ra1+ {[%clk 0:00:14.4]}
76. Rc1 {[%clk 0:00:05.1]} 76... Ra2 {[%clk 0:00:16.3]} 77. Rc6 {[%clk
0:00:05.9]} 77... Rd2+ {[%clk 0:00:12.2]} 78. Kc1 {[%clk 0:00:07]} 78... Rg2
{[%clk 0:00:08.4]} 79. Kb1 {[%clk 0:00:08.2]} 79... Rb2+ {[%clk 0:00:09.4]} 80.
Kc1 {[%clk 0:00:09.3]} 80... Rb7 {[%clk 0:00:10.3]} 81. Rc8 {[%clk 0:00:10]}
81... Be3+ {[%clk 0:00:11.1]} 82. Kd1 {[%clk 0:00:10.7]} 82... Rb1+ {[%clk
0:00:13]} 83. Rc1 {[%clk 0:00:11.8]} 83... Rxc1# {[%clk 0:00:14.7]} 0-1

[Event "*** Titled Tuesday Blitz"]
[Site "Chess.com"]
[Date "2018.11.06"]
[Round "5"]
[White "ozates"]
[Black "731291"]
[Result "1/2-1/2"]
[WhiteElo "2344"]
[BlackElo "2566"]
[TimeControl "180+2"]
[EndTime "13:59:51 PST"]
[Termination "Game drawn by agreement"]

1. e4 {[%clk 0:03:00.2]} 1... e6 {[%clk 0:02:59.5]} 2. d4 {[%clk 0:02:53.3]}
2... d5 {[%clk 0:03:00.8]} 3. Nd2 {[%clk 0:02:54.8]} 3... Be7 {[%clk 0:03:01.6]}
4. Bd3 {[%clk 0:02:54.9]} 4... c5 {[%clk 0:03:01.4]} 5. dxc5 {[%clk 0:02:56.8]}
5... Nf6 {[%clk 0:02:59.7]} 6. Qe2 {[%clk 0:02:56.9]} 6... O-O {[%clk
0:02:59.7]} 7. Ngf3 {[%clk 0:02:57.7]} 7... a5 {[%clk 0:03:00.9]} 8. O-O {[%clk
0:02:57.4]} 8... Na6 {[%clk 0:03:02]} 9. exd5 {[%clk 0:02:58.4]} 9... exd5
{[%clk 0:03:02.2]} 10. Bxa6 {[%clk 0:02:51.3]} 10... Rxa6 {[%clk 0:03:00.3]} 11.
Re1 {[%clk 0:02:51.4]} 11... Bd6 {[%clk 0:02:48.4]} 12. cxd6 {[%clk 0:02:51]}
1/2-1/2

[Event "*** Titled Tuesday Blitz"]
[Site "Chess.com"]
[Date "2018.11.06"]
[Round "5"]
[White "Orest_Vovk"]
[Black "Quiet_Desperation"]
[Result "1-0"]
[WhiteElo "2422"]
[BlackElo "2328"]
[TimeControl "180+2"]
[EndTime "14:01:24 PST"]
[Termination "Orest_Vovk won by resignation"]

1. g4 {[%clk 0:03:01.9]} 1... d5 {[%clk 0:03:00.3]} 2. h3 {[%clk 0:03:00.7]}
2... e5 {[%clk 0:03:01.1]} 3. Bg2 {[%clk 0:03:01.5]} 3... Nc6 {[%clk 0:03:02.3]}
4. c4 {[%clk 0:03:02.1]} 4... Be6 {[%clk 0:03:03.4]} 5. Nc3 {[%clk 0:03:02.2]}
5... d4 {[%clk 0:03:03.9]} 6. Nd5 {[%clk 0:03:02.3]} 6... Qd7 {[%clk 0:03:04.1]}
7. d3 {[%clk 0:03:02.7]} 7... O-O-O {[%clk 0:03:03.5]} 8. Qa4 {[%clk 0:03:03.4]}
8... Kb8 {[%clk 0:03:02.2]} 9. Bd2 {[%clk 0:02:57.8]} 9... h5 {[%clk 0:02:57.5]}
10. b4 {[%clk 0:02:56.9]} 10... hxg4 {[%clk 0:02:56.9]} 11. b5 {[%clk
0:02:57.6]} 11... Nce7 {[%clk 0:02:53.5]} 12. Nb4 {[%clk 0:02:55.5]} 12... Nc8
{[%clk 0:02:36.9]} 13. Na6+ {[%clk 0:02:30.9]} 13... Ka8 {[%clk 0:02:28.2]} 14.
c5 {[%clk 0:02:11.3]} 14... Bd5 {[%clk 0:02:18.5]} 15. c6 {[%clk 0:02:10]} 15...
Qe6 {[%clk 0:02:10.2]} 16. Nxc7+ {[%clk 0:02:07]} 1-0

[Event "*** Titled Tuesday Blitz"]
[Site "Chess.com"]
[Date "2018.11.06"]
[Round "5"]
[White "Samuray111"]
[Black "pedromartinez91"]
[Result "1-0"]
[WhiteElo "2604"]
[BlackElo "2491"]
[TimeControl "180+2"]
[EndTime "14:01:50 PST"]
[Termination "Samuray111 won by resignation"]

1. e4 {[%clk 0:02:55.6]} 1... e6 {[%clk 0:02:59.7]} 2. Qe2 {[%clk 0:02:55.9]}
2... c5 {[%clk 0:02:59.9]} 3. Nf3 {[%clk 0:02:56.8]} 3... Nc6 {[%clk 0:03:00.8]}
4. g3 {[%clk 0:02:58]} 4... Nf6 {[%clk 0:03:01.4]} 5. Bg2 {[%clk 0:02:59.4]}
5... Be7 {[%clk 0:03:01]} 6. e5 {[%clk 0:02:59.4]} 6... Nd5 {[%clk 0:03:00]} 7.
O-O {[%clk 0:03:00.3]} 7... O-O {[%clk 0:03:00.5]} 8. d3 {[%clk 0:03:01.3]} 8...
d6 {[%clk 0:03:00.8]} 9. exd6 {[%clk 0:02:59.5]} 9... Bxd6 {[%clk 0:03:01.1]}
10. Na3 {[%clk 0:03:00.1]} 10... b6 {[%clk 0:02:59.5]} 11. Nc4 {[%clk
0:03:00.6]} 11... Bc7 {[%clk 0:03:00]} 12. c3 {[%clk 0:03:01.3]} 12... Re8
{[%clk 0:02:57.4]} 13. Nfe5 {[%clk 0:02:56.8]} 13... Nxe5 {[%clk 0:02:56.8]} 14.
Nxe5 {[%clk 0:02:57.7]} 14... Rb8 {[%clk 0:02:46.9]} 15. Nc6 {[%clk 0:02:58]}
15... Qd7 {[%clk 0:02:41.4]} 16. Nxb8 {[%clk 0:02:59.2]} 16... Bxb8 {[%clk
0:02:42.8]} 17. Bd2 {[%clk 0:02:57.3]} 17... Bb7 {[%clk 0:02:42.5]} 18. Rae1
{[%clk 0:02:57.2]} 18... Ba6 {[%clk 0:02:36]} 19. Bc1 {[%clk 0:02:56.4]} 19...
Nf6 {[%clk 0:02:35.5]} 20. Rd1 {[%clk 0:02:56.9]} 20... Rd8 {[%clk 0:02:35.7]}
21. c4 {[%clk 0:02:50.5]} 21... h6 {[%clk 0:02:24.5]} 22. b3 {[%clk 0:02:49.3]}
22... Ne8 {[%clk 0:02:21.1]} 23. Bb2 {[%clk 0:02:49.5]} 23... Nd6 {[%clk
0:02:21.6]} 24. d4 {[%clk 0:02:49.5]} 24... cxd4 {[%clk 0:02:18.1]} 25. Rxd4
{[%clk 0:02:49.4]} 25... Qe7 {[%clk 0:02:16.8]} 26. Rfd1 {[%clk 0:02:49.1]}
26... Bc7 {[%clk 0:02:16.5]} 27. Ba3 {[%clk 0:02:48.4]} 27... e5 {[%clk
0:02:08.8]} 28. R4d2 {[%clk 0:02:46.5]} 1-0

[Event "*** Titled Tuesday Blitz"]
[Site "Chess.com"]
[Date "2018.11.06"]
[Round "5"]
[White "RegZryt"]
[Black "2Tilted"]
[Result "1-0"]
[WhiteElo "2517"]
[BlackElo "2411"]
[TimeControl "180+2"]
[EndTime "14:03:02 PST"]
[Termination "RegZryt won by resignation"]

1. d4 {[%clk 0:03:01.9]} 1... d5 {[%clk 0:03:00.2]} 2. c4 {[%clk 0:03:02.9]}
2... c6 {[%clk 0:03:01.5]} 3. Nf3 {[%clk 0:03:03.9]} 3... Nf6 {[%clk 0:03:02.3]}
4. e3 {[%clk 0:03:05.4]} 4... Bg4 {[%clk 0:03:02.3]} 5. h3 {[%clk 0:03:06.6]}
5... Bxf3 {[%clk 0:03:03.1]} 6. Qxf3 {[%clk 0:03:04.6]} 6... e6 {[%clk 0:03:05]}
7. Nc3 {[%clk 0:03:04.3]} 7... Nbd7 {[%clk 0:03:05.1]} 8. Bd3 {[%clk 0:03:03.1]}
8... Bb4 {[%clk 0:03:04.1]} 9. O-O {[%clk 0:03:02]} 9... O-O {[%clk 0:03:00]}
10. Bd2 {[%clk 0:02:45.5]} 10... dxc4 {[%clk 0:02:48.8]} 11. Bxc4 {[%clk
0:02:46.1]} 11... e5 {[%clk 0:02:49.8]} 12. Rad1 {[%clk 0:02:30.6]} 12... exd4
{[%clk 0:02:49]} 13. exd4 {[%clk 0:02:32.5]} 13... Nb6 {[%clk 0:02:48]} 14. Bd3
{[%clk 0:02:28]} 14... Nbd5 {[%clk 0:02:30.5]} 15. Bg5 {[%clk 0:02:17.5]} 15...
Be7 {[%clk 0:02:25.7]} 16. Rfe1 {[%clk 0:02:14.6]} 16... Re8 {[%clk 0:02:13.8]}
17. Re2 {[%clk 0:01:53.1]} 17... h6 {[%clk 0:02:13.9]} 18. Bh4 {[%clk
0:01:52.9]} 18... Nxc3 {[%clk 0:01:46.6]} 19. bxc3 {[%clk 0:01:52.9]} 19... Nh7
{[%clk 0:01:47.3]} 20. Bxh7+ {[%clk 0:01:41.8]} 20... Kxh7 {[%clk 0:01:47.5]}
21. Qe4+ {[%clk 0:01:42.8]} 21... Kg8 {[%clk 0:01:44.6]} 22. Bxe7 {[%clk
0:01:43.4]} 22... Qd7 {[%clk 0:01:43]} 23. Rde1 {[%clk 0:01:44.2]} 23... f6
{[%clk 0:01:36.5]} 24. Qg6 {[%clk 0:01:42.5]} 1-0